bitfinex/quotes_SOLUSD_20240623
["timestamp","ask_amount","ask_price","bid_price","bid_amount"]
[1719186329045,6.09,128.84,128.83,0.17]
[1719186329249,6.09,128.84,128.83,0.34]
[1719186330262,43.3892,128.88,128.83,0.34]
[1719186330444,6.09,128.85,128.83,0.34]
[1719186331770,67.7492,128.88,128.83,0.34]
[1719186332071,6.09,128.85,128.83,0.34]
[1719186333249,6.09,128.84,128.79,146.82]
[1719186333466,6.09,128.81,128.79,146.82]
[1719186334370,6.09,128.82,128.79,146.82]
[1719186335372,0.82649677,128.87,128.77,146.82]
[1719186335563,6.09,128.79,128.77,146.82]
[1719186335750,6.09,128.82,128.74,32.0089]
[1719186335751,6.09,128.78,128.76,46.82]
[1719186336873,0.82649677,128.85,128.77,0.17]
[1719186337057,6.09,128.8,128.77,0.34]
[1719186338053,6.09,128.79,128.77,0.34]
[1719186339075,6.09,128.8,128.77,0.34]
[1719186339466,0.82649677,128.85,128.77,147.16]
[1719186339671,6.09,128.81,128.77,147.16]
[1719186339874,6.09,128.8,128.77,147.16]
[1719186340782,0.82649677,128.85,128.77,147.16]
[1719186340954,6.09,128.8,128.77,147.16]
[1719186342978,7.10715113,128.85,128.77,147.16]
[1719186342979,6.09,128.79,128.77,147.16]
[1719186344557,24.36,128.82,128.77,147.16]
[1719186347677,7.10715113,128.85,128.77,147.16]
[1719186347871,6.09,128.81,128.77,147.16]
[1719186349283,7.10715113,128.85,128.77,147.16]
[1719186349483,6.09,128.81,128.77,147.16]
[1719186350690,7.10715113,128.85,128.77,147.16]
[1719186350867,6.09,128.81,128.77,147.16]
[1719186353487,7.10715113,128.85,128.77,147.16]
[1719186353673,6.09,128.81,128.77,147.16]
[1719186353984,7.10715113,128.85,128.77,147.16]
[1719186354189,6.09,128.81,128.77,147.16]
[1719186355603,6.28065436,128.85,128.77,154.9255]
[1719186355772,46.1563,128.86,128.79,146.82]
[1719186355976,6.09,128.83,128.8,0.34]
[1719186357184,46.1563,128.86,128.81,100.0]
[1719186357499,6.09,128.84,128.82,0.34]
[1719186357784,6.1949632,128.86,128.82,0.34]
[1719186357981,24.36,128.88,128.82,0.34]
[1719186358205,6.09,128.84,128.82,0.34]
[1719186359006,0.82649677,128.91,128.83,146.82]
[1719186359219,6.09,128.87,128.84,0.34]
[1719186360527,6.99668755,128.91,128.84,0.34]
[1719186360812,6.09,128.87,128.84,0.34]
[1719186361014,6.09,128.86,128.84,0.34]
[1719186361417,6.09,128.87,128.84,0.34]
[1719186361918,50.08530194,128.92,128.86,146.82]
[1719186362088,6.09,128.89,128.87,0.34]
[1719186363199,50.08530194,128.92,128.87,0.34]
[1719186363398,6.09,128.88,128.83,46.82]
[1719186363701,6.09,128.88,128.82,130.9226]
[1719186363702,6.09,128.84,128.82,130.9226]
[1719186364211,0.82649677,128.91,128.82,130.9226]
[1719186364416,6.09,128.85,128.82,177.7426]
[1719186365004,6.09,128.88,128.83,0.17]
[1719186365209,24.36,128.88,128.83,0.17]
[1719186365919,24.36,128.88,128.83,0.34]
[1719186366905,24.36,128.88,128.82,0.34]
[1719186367096,0.82649677,128.91,128.82,0.34]
[1719186367304,6.09,128.85,128.82,0.34]
[1719186368820,6.09,128.84,128.82,0.34]
[1719186370608,0.82649677,128.91,128.82,147.16]
[1719186370820,6.09,128.85,128.82,154.9224]
[1719186371002,24.36,128.88,128.82,147.16]
[1719186371517,0.82649677,128.91,128.84,154.5811]
[1719186371719,50.08530194,128.92,128.86,154.5802]
[1719186371900,6.09,128.89,128.87,0.34]
[1719186372100,50.08530194,128.92,128.87,0.34]
[1719186373009,6.09,128.89,128.87,0.34]
[1719186373824,6.09,128.9,128.87,0.34]
[1719186379006,6.09,128.89,128.87,0.34]
[1719186379507,6.09,128.88,128.86,0.34]
[1719186379711,6.09,128.88,128.84,100.0]
[1719186379922,6.09,128.86,128.82,100.0]
[1719186380118,6.09,128.86,128.82,107.7627]
[1719186380444,6.09,128.86,128.83,46.82]
[1719186381119,6.09,128.86,128.84,0.34]
[1719186381506,6.09,128.86,128.84,147.16]
[1719186381707,6.09,128.87,128.84,147.16]
[1719186382543,50.08530194,128.92,128.84,147.16]
[1719186382758,6.09,128.88,128.84,147.16]
[1719186383245,0.82649677,128.91,128.81,46.68]
[1719186383409,6.09,128.82,128.79,100.0]
[1719186383747,6.09,128.82,128.76,100.0]
[1719186383748,6.09,128.8,128.76,100.0]
[1719186383908,6.09,128.77,128.74,132.0938]
[1719186384307,6.09,128.77,128.75,46.68]
[1719186384507,6.09,128.76,128.72,100.0]
[1719186384740,13.56489677,128.81,128.72,100.0]
[1719186384741,6.09,128.75,128.72,100.0]
[1719186385311,45.00149677,128.81,128.73,46.68]
[1719186385512,6.09,128.75,128.73,46.68]
[1719186386336,6.09,128.75,128.74,0.17]
[1719186386519,6.09,128.76,128.74,0.34]
[1719186386720,63.28149677,128.81,128.74,0.34]
[1719186387024,62.455,128.81,128.75,46.68]
[1719186387334,62.455,128.81,128.76,0.34]
[1719186390429,0.82649677,128.8,128.73,46.68]
[1719186391721,0.82649677,128.8,128.74,0.17]
[1719186392242,0.82649677,128.8,128.72,100.0]
[1719186392411,32.9971,128.76,128.67,107.7714]
[1719186392611,18.28,128.75,128.67,107.7714]
[1719186392818,19.10649677,128.75,128.67,100.0]
[1719186393028,19.10649677,128.75,128.67,107.7717]
[1719186393531,19.10649677,128.75,128.68,46.68]
[1719186393724,19.10649677,128.75,128.68,54.4511]
[1719186393923,18.28,128.75,128.68,54.4511]
[1719186394121,32.9971,128.76,128.71,54.4493]
[1719186394326,32.9971,128.76,128.72,0.34]
[1719186398037,32.9971,128.76,128.72,147.02]
[1719186398225,12.3892,128.77,128.72,147.02]
[1719186398729,31.7811,128.79,128.72,154.7887]
[1719186398939,31.7811,128.79,128.73,46.68]
[1719186399114,31.7811,128.79,128.74,0.34]
[1719186399831,50.0611,128.79,128.74,0.34]
[1719186401632,49.5611,128.79,128.74,0.34]
[1719186403843,31.2811,128.79,128.74,0.34]
[1719186409041,30.5709,128.82,128.75,154.4466]
[1719186409336,30.5709,128.82,128.76,0.34]
[1719186409543,36.92116088,128.82,128.76,47.02]
[1719186411729,36.92116088,128.82,128.77,100.0]
[1719186411947,36.92116088,128.82,128.78,0.34]
[1719186413328,10.0,128.91,128.78,0.34]
[1719186413329,32.7954,128.85,128.79,146.68]
[1719186413651,32.7954,128.85,128.8,0.34]
[1719186414625,32.7954,128.85,128.81,0.17]
[1719186414831,32.7954,128.85,128.79,0.34]
[1719186415038,33.62189677,128.85,128.79,0.34]
[1719186418229,32.7954,128.85,128.79,100.34]
[1719186418560,13.2321,128.86,128.79,147.02]
[1719186421152,14.05859677,128.86,128.79,0.34]
[1719186421333,14.05859677,128.86,128.79,100.34]
[1719186421653,13.2321,128.86,128.8,46.68]
[1719186421826,13.2321,128.86,128.81,0.34]
[1719186422829,13.2321,128.86,128.8,0.34]
[1719186423225,13.2321,128.86,128.81,0.17]
[1719186423446,13.2321,128.86,128.79,100.34]
[1719186425250,37.56379447,128.88,128.79,186.8567]
[1719186425454,18.28,128.9,128.81,154.4432]
[1719186425752,19.10649677,128.9,128.82,0.34]
[1719186426335,0.82649677,128.89,128.82,0.34]
[1719186426764,19.10649677,128.9,128.83,146.68]
[1719186426950,19.10649677,128.9,128.84,0.34]
[1719186428745,49.5302,128.91,128.84,0.34]
[1719186429060,31.2502,128.91,128.84,0.34]
[1719186429257,50.35669677,128.91,128.84,0.34]
[1719186430358,6.07354743,128.93,128.85,154.4409]
[1719186430559,31.44069677,128.94,128.86,0.34]
[1719186430940,18.28,128.91,128.86,0.34]
[1719186431863,19.10649677,128.93,128.86,0.34]
[1719186432943,0.82649677,128.93,128.86,0.34]
[1719186433341,18.28,128.92,128.86,0.34]
[1719186436771,6.08,128.87,128.86,0.34]
[1719186441254,6.08,128.87,128.8,100.0]
[1719186441454,6.08,128.88,128.79,31.4127]
[1719186441455,6.08,128.81,128.79,31.4127]
[1719186441660,6.08,128.8,128.79,31.4127]
[1719186442790,18.27,128.85,128.79,31.4127]
[1719186444761,18.27,128.85,128.79,178.0927]
[1719186444957,18.27,128.85,128.8,0.34]
[1719186445153,0.82649677,128.87,128.8,0.34]
[1719186445587,0.82649677,128.87,128.8,0.17]
[1719186445755,0.82649677,128.87,128.79,31.4127]
[1719186445954,18.27,128.85,128.79,31.4127]
[1719186446150,0.82649677,128.84,128.79,31.4127]
[1719186446580,0.82649677,128.84,128.78,0.34]
[1719186446960,0.82649677,128.84,128.76,46.68]
[1719186447284,18.27,128.82,128.75,32.3681]
[1719186447578,0.82649677,128.81,128.73,146.68]
[1719186448208,18.27,128.79,128.73,46.68]
[1719186450287,18.27,128.79,128.74,0.34]
[1719186450495,18.27,128.79,128.74,100.34]
[1719186450793,18.27,128.79,128.74,0.34]
[1719186451788,18.27,128.79,128.71,31.4037]
[1719186451789,0.82649677,128.78,128.71,31.4037]
[1719186451995,18.27,128.74,128.68,32.074]
[1719186452179,18.27,128.74,128.66,100.0]
[1719186452180,0.82649677,128.73,128.66,100.0]
[1719186452892,0.82649677,128.73,128.66,146.68]
[1719186454977,0.82649677,128.73,128.67,0.17]
[1719186455689,0.82649677,128.73,128.67,0.34]
[1719186456330,18.27,128.71,128.67,0.34]
[1719186456608,13.02729677,128.73,128.62,100.0]
[1719186456609,18.27,128.68,128.62,100.0]
[1719186457310,18.27,128.68,128.6,32.8885]
[1719186457478,0.82649677,128.67,128.6,79.5685]
[1719186457878,19.09649677,128.68,128.6,179.5685]
[1719186458580,19.09649677,128.68,128.6,187.3445]
[1719186459012,18.27,128.68,128.6,187.3445]
[1719186459199,18.27,128.68,128.61,54.4554]
[1719186459406,0.82649677,128.69,128.62,146.68]
[1719186459715,0.82649677,128.69,128.63,0.17]
[1719186459885,0.82649677,128.69,128.63,0.34]
[1719186462411,50.9902,128.7,128.63,0.34]
[1719186463405,0.82649677,128.69,128.63,0.34]
[1719186465584,12.0935,128.68,128.63,0.34]
[1719186467004,18.27,128.67,128.61,46.68]
[1719186468782,18.27,128.67,128.62,0.34]
[1719186468983,19.09649677,128.67,128.62,0.34]
[1719186469390,18.27,128.67,128.62,0.34]
[1719186470313,19.09649677,128.67,128.62,0.34]
[1719186473705,18.27,128.67,128.62,0.34]
[1719186474209,19.09649677,128.67,128.62,0.34]
[1719186478232,18.27,128.67,128.62,100.34]
[1719186478405,12.0935,128.68,128.62,100.34]
[1719186478913,32.7202,128.7,128.63,54.4538]
[1719186479219,13.139,128.71,128.66,146.68]
[1719186479528,13.139,128.71,128.67,0.34]
[1719186481309,45.1559,128.74,128.68,146.68]
[1719186481620,45.1559,128.74,128.69,0.34]
[1719186482797,24.46613375,128.76,128.7,146.68]
[1719186482994,45.1075,128.77,128.71,0.34]
[1719186483823,12.0677,128.77,128.73,46.68]
[1719186484009,18.27,128.79,128.74,0.34]
[1719186484401,45.0914,128.8,128.74,147.02]
[1719186485023,12.0516,128.8,128.76,146.68]
[1719186485202,32.461,128.83,128.77,0.34]
[1719186485203,62.7826,128.83,128.77,0.34]
[1719186485403,44.5126,128.83,128.77,0.34]
[1719186488275,44.5126,128.83,128.78,0.17]
[1719186488625,44.5126,128.83,128.76,147.02]
[1719186489166,44.5126,128.83,128.76,47.02]
[1719186489613,44.5126,128.83,128.76,0.34]
[1719186490225,0.82649677,128.82,128.76,0.34]
[1719186490434,18.27,128.81,128.74,100.0]
[1719186490927,18.27,128.81,128.73,79.9174]
[1719186491135,18.27,128.81,128.74,146.68]
[1719186491707,18.27,128.81,128.75,0.17]
[1719186492054,18.27,128.81,128.75,0.34]
[1719186492245,44.5126,128.83,128.76,154.4459]
[1719186492430,44.5126,128.83,128.77,0.34]
[1719186496519,44.5126,128.83,128.78,146.68]
[1719186496840,44.5126,128.83,128.79,0.34]
[1719186502529,19.09649677,128.82,128.72,100.0]
[1719186503113,18.27,128.79,128.7,517.0537]
[1719186503543,18.27,128.79,128.71,46.68]
[1719186504146,18.27,128.79,128.72,147.02]
[1719186504445,0.82649677,128.81,128.72,154.6184]
[1719186504830,0.82649677,128.81,128.72,146.85]
[1719186505030,0.82649677,128.81,128.72,154.6186]
[1719186505746,0.82649677,128.81,128.73,0.17]
[1719186506230,18.27,128.82,128.73,7.9381]
[1719186506431,19.09649677,128.82,128.74,146.85]
[1719186506636,19.09649677,128.82,128.75,0.17]
[1719186507018,18.27,128.82,128.75,0.17]
[1719186507641,19.09649677,128.82,128.75,0.17]
[1719186509940,18.27,128.82,128.75,0.17]
[1719186510135,18.27,128.82,128.76,146.68]
[1719186510339,18.27,128.82,128.77,0.34]
[1719186511845,44.5126,128.83,128.77,0.34]
[1719186512834,44.5126,128.83,128.78,146.68]
[1719186513033,44.5126,128.83,128.79,0.34]
[1719186514756,18.27,128.88,128.81,46.68]
[1719186514757,42.3221,128.86,128.81,46.68]
[1719186515060,42.3221,128.86,128.82,147.02]
[1719186515365,42.3221,128.86,128.83,0.17]
[1719186520556,18.27,128.88,128.83,0.17]
[1719186521753,18.27,128.88,128.82,46.68]
[1719186521946,18.27,128.88,128.82,146.68]
[1719186523876,18.27,128.88,128.83,0.17]
[1719186524067,18.27,128.88,128.83,0.34]
[1719186524759,6.09,128.84,128.83,0.34]
[1719186524978,24.36,128.88,128.83,0.34]
[1719186525153,6.09,128.84,128.83,0.34]
[1719186525345,24.36,128.88,128.83,0.34]
[1719186525559,6.09,128.84,128.83,0.34]
[1719186526072,24.36,128.88,128.83,0.34]
[1719186526267,6.09,128.84,128.83,0.34]
[1719186526764,44.9254566,128.89,128.83,0.34]
[1719186526968,44.9254566,128.89,128.86,146.68]
[1719186527168,6.09,128.88,128.87,0.34]
[1719186527755,12.18,128.88,128.84,46.68]
[1719186527956,6.09,128.88,128.85,0.34]
[1719186528172,6.09,128.86,128.84,0.34]
[1719186528472,6.09,128.85,128.84,0.34]
[1719186530270,6.09,128.85,128.84,0.17]
[1719186531457,6.09,128.85,128.84,0.34]
[1719186532445,6.09,128.85,128.8,146.68]
[1719186532644,19.09649677,128.88,128.8,146.68]
[1719186532848,19.09649677,128.88,128.8,154.4439]
[1719186533070,19.09649677,128.88,128.8,146.68]
[1719186533267,19.09649677,128.88,128.8,154.4439]
[1719186534262,19.09649677,128.88,128.81,0.17]
[1719186534666,19.09649677,128.88,128.81,0.34]
[1719186538181,18.27,128.88,128.81,0.34]
[1719186540174,44.9254566,128.89,128.84,46.68]
[1719186540375,44.9254566,128.89,128.83,100.0]
[1719186540376,44.9254566,128.89,128.85,0.34]
[1719186540879,44.9254566,128.89,128.85,0.17]
[1719186541053,44.9254566,128.89,128.84,0.34]
[1719186542473,44.9254566,128.89,128.85,146.68]
[1719186542679,44.9254566,128.89,128.86,0.34]
[1719186547379,44.9254566,128.89,128.85,0.34]
[1719186553293,44.9254566,128.89,128.82,46.68]
[1719186553594,18.27,128.87,128.81,100.0]
[1719186553888,43.599,128.86,128.79,7.7644]
[1719186554090,43.599,128.86,128.77,100.0]
[1719186554091,0.82649677,128.85,128.77,100.0]
[1719186554289,18.27,128.84,128.77,154.4452]
[1719186554593,0.82649677,128.85,128.78,7.7651]
[1719186554793,6.09,128.8,128.78,7.7651]
[1719186554972,6.09,128.8,128.77,154.4456]
[1719186557391,6.09,128.8,128.78,0.34]
[1719186557588,6.09,128.79,128.78,0.34]
[1719186557791,6.09,128.79,128.77,0.34]
[1719186558399,6.09,128.82,128.77,0.34]
[1719186558692,6.09,128.78,128.77,0.34]
[1719186559066,6.09,128.78,128.77,100.34]
[1719186559482,6.09,128.78,128.77,108.1057]
[1719186559879,45.4093,128.81,128.77,154.7857]
[1719186560081,6.09,128.79,128.77,154.7857]
[1719186560279,44.782,128.88,128.79,107.7645]
[1719186560483,69.142,128.88,128.8,0.34]
[1719186560690,0.82649677,128.87,128.8,0.34]
[1719186560990,6.09,128.81,128.8,0.34]
[1719186561176,6.09,128.81,128.8,0.17]
[1719186561872,6.09,128.81,128.79,0.34]
[1719186562073,6.09,128.8,128.79,0.34]
[1719186562485,6.09,128.8,128.79,100.34]
[1719186563672,6.09,128.8,128.79,0.34]
[1719186563892,6.09,128.8,128.79,0.17]
[1719186564686,6.09,128.8,128.78,0.34]
[1719186564888,52.0368,128.82,128.78,0.34]
[1719186565206,70.3068,128.82,128.78,0.34]
[1719186566878,6.09,128.79,128.78,0.34]
[1719186567080,6.09,128.79,128.75,154.4467]
[1719186567282,6.09,128.77,128.75,154.4467]
[1719186567807,6.09,128.77,128.76,7.7663]
[1719186568375,6.09,128.77,128.76,0.17]
[1719186568590,6.09,128.77,128.76,0.34]
[1719186568989,70.3068,128.82,128.76,0.34]
[1719186569182,70.3068,128.82,128.77,0.17]
[1719186569499,6.09,128.78,128.77,0.34]
[1719186570014,6.09,128.78,128.77,0.17]
[1719186570191,6.09,128.78,128.76,0.34]
[1719186571997,70.3068,128.82,128.76,0.34]
[1719186571998,6.09,128.77,128.76,0.34]
[1719186572203,70.3068,128.82,128.76,0.34]
[1719186572697,6.09,128.77,128.76,0.34]
[1719186573009,45.9468,128.82,128.76,0.34]
[1719186573209,70.3068,128.82,128.76,8.1062]
[1719186573376,45.9468,128.82,128.77,154.4457]
[1719186573583,6.09,128.81,128.79,100.0]
[1719186573880,43.9628,128.86,128.8,0.34]
[1719186574076,43.9628,128.86,128.81,146.68]
[1719186574278,43.9628,128.86,128.82,0.34]
[1719186574495,43.9628,128.86,128.83,154.4421]
[1719186574687,43.9628,128.9,128.84,47.02]
[1719186574898,43.9628,128.9,128.85,146.68]
[1719186575102,43.9628,128.9,128.86,0.34]
[1719186575103,6.09,128.87,128.86,0.34]
[1719186575409,6.09,128.87,128.78,30.4374]
[1719186575410,6.09,128.87,128.83,146.68]
[1719186575591,6.09,128.88,128.84,0.34]
[1719186575789,6.09,128.85,128.84,0.34]
[1719186576503,6.09,128.85,128.84,0.17]
[1719186577998,6.09,128.86,128.84,0.17]
[1719186578196,24.36,128.88,128.85,0.17]
[1719186578379,6.09,128.86,128.85,0.17]
[1719186579005,6.09,128.86,128.84,0.17]
[1719186580085,6.09,128.85,128.84,0.17]
[1719186581202,6.09,128.85,128.83,0.17]
[1719186581388,6.09,128.84,128.82,0.17]
[1719186581801,6.09,128.84,128.81,146.68]
[1719186582107,6.09,128.82,128.8,46.68]
[1719186582296,6.09,128.82,128.81,100.0]
[1719186583276,6.09,128.82,128.81,100.17]
[1719186584487,6.09,128.82,128.81,100.34]
[1719186585886,6.09,128.82,128.81,0.34]
[1719186587207,6.09,128.82,128.78,46.68]
[1719186587511,6.09,128.79,128.77,146.68]
[1719186588501,6.09,128.8,128.77,154.4456]
[1719186588681,6.09,128.8,128.78,0.34]
[1719186589786,44.5195,128.85,128.78,0.34]
[1719186589994,6.09,128.79,128.78,0.34]
[1719186590388,44.5195,128.85,128.78,0.34]
[1719186590589,44.5195,128.85,128.78,54.7851]
[1719186590590,6.09,128.8,128.78,54.7851]
[1719186591095,44.5195,128.85,128.78,54.7851]
[1719186591415,6.09,128.8,128.78,47.02]
[1719186593338,6.09,128.8,128.79,146.68]
[1719186593513,44.5195,128.85,128.79,154.7845]
[1719186593816,6.09,128.81,128.8,0.34]
[1719186594212,6.09,128.82,128.8,54.7835]
[1719186594414,6.09,128.82,128.8,47.02]
[1719186597415,6.2403026,128.87,128.81,146.68]
[1719186597624,6.09,128.84,128.82,0.34]
[1719186597802,42.3758,128.88,128.82,0.34]
[1719186598116,6.09,128.84,128.82,0.34]
[1719186598705,6.09,128.83,128.82,0.34]
[1719186599314,6.09,128.83,128.82,0.17]
[1719186599994,6.09,128.83,128.79,100.0]
[1719186600218,6.09,128.8,128.78,46.68]
[1719186600525,6.09,128.79,128.77,100.0]
[1719186600850,6.09,128.78,128.77,100.0]
[1719186601124,6.09,128.78,128.77,146.68]
[1719186602323,6.09,128.78,128.74,146.68]
[1719186602616,69.0028,128.82,128.73,46.68]
[1719186602617,6.09,128.75,128.73,46.68]
[1719186602813,6.09,128.74,128.73,46.68]
[1719186603907,0.82649677,128.81,128.73,46.68]
[1719186604109,0.82649677,128.81,128.74,0.34]
[1719186604310,6.09,128.75,128.74,0.34]
[1719186604519,0.82649677,128.81,128.74,0.34]
[1719186604727,6.09,128.75,128.74,0.34]
[1719186616618,0.82649677,128.81,128.74,147.02]
[1719186616848,6.09,128.77,128.74,47.02]
[1719186617010,6.09,128.76,128.74,47.02]
[1719186617446,6.09,128.75,128.74,47.02]
[1719186617625,6.09,128.75,128.74,0.34]
[1719186617940,6.09,128.75,128.69,100.0]
[1719186618145,6.09,128.71,128.69,100.0]
[1719186619040,6.09,128.73,128.69,154.4501]
[1719186619253,6.09,128.73,128.69,146.68]
[1719186619412,6.09,128.72,128.69,146.68]
[1719186620316,43.2445,128.77,128.69,146.68]
[1719186620526,6.09,128.73,128.69,146.68]
[1719186620730,6.09,128.73,128.7,0.17]
[1719186620921,6.09,128.73,128.7,0.34]
[1719186623057,24.36,128.76,128.71,146.68]
[1719186623374,6.09,128.74,128.72,0.34]
[1719186623545,6.09,128.74,128.71,146.68]
[1719186623740,49.4219709,128.77,128.72,0.34]
[1719186623917,6.09,128.74,128.72,0.34]
[1719186624342,6.09,128.73,128.72,0.34]
[1719186625039,6.09,128.76,128.72,0.34]
[1719186625363,6.09,128.74,128.72,0.34]
[1719186625864,49.4219709,128.77,128.72,0.34]
[1719186626042,6.09,128.74,128.72,0.34]
[1719186626742,6.09,128.74,128.71,0.34]
[1719186627260,6.09,128.73,128.71,0.34]
[1719186628842,6.09,128.74,128.71,0.34]
[1719186629038,6.09,128.73,128.7,46.68]
[1719186629254,6.09,128.72,128.7,46.68]
[1719186629839,6.09,128.71,128.66,46.68]
[1719186630034,6.09,128.67,128.64,46.68]
[1719186630252,6.09,128.7,128.64,46.68]
[1719186630253,6.09,128.66,128.64,46.68]
[1719186630450,6.09,128.67,128.64,46.68]
[1719186630650,6.09,128.68,128.64,46.68]
[1719186630855,6.09,128.68,128.65,100.0]
[1719186631076,6.09,128.69,128.65,146.68]
[1719186631371,45.9082,128.72,128.65,160.5426]
[1719186631547,6.09,128.7,128.65,160.5426]
[1719186631868,6.09,128.7,128.66,0.17]
[1719186632247,45.2408,128.75,128.68,146.68]
[1719186632577,6.09,128.72,128.69,0.34]
[1719186632939,6.09,128.71,128.66,146.68]
[1719186633175,0.82649677,128.74,128.66,146.68]
[1719186633176,6.09,128.69,128.67,0.17]
[1719186633340,6.09,128.71,128.68,146.68]
[1719186633542,6.09,128.71,128.69,0.34]
[1719186633964,6.09,128.71,128.69,0.17]
[1719186634171,6.09,128.7,128.69,0.34]
[1719186634668,6.09,128.7,128.69,0.17]
[1719186635175,6.09,128.7,128.68,0.34]
[1719186635348,6.09,128.69,128.68,0.34]
[1719186635963,6.09,128.69,128.64,146.68]
[1719186636274,0.82649677,128.74,128.64,146.68]
[1719186636275,6.09,128.68,128.64,146.68]
[1719186636443,0.82649677,128.74,128.66,146.68]
[1719186636643,45.2408,128.75,128.66,146.68]
[1719186636845,6.09,128.71,128.66,160.542]
[1719186637077,6.09,128.72,128.68,146.68]
[1719186637281,6.09,128.72,128.69,0.34]
[1719186638345,45.2408,128.75,128.7,100.0]
[1719186638561,6.09,128.73,128.71,0.34]
[1719186639266,6.09,128.73,128.71,0.17]
[1719186639463,45.2408,128.75,128.67,46.68]
[1719186639464,6.09,128.72,128.67,46.68]
[1719186639667,45.2408,128.75,128.68,147.02]
[1719186640041,6.09,128.72,128.68,147.02]
[1719186640358,45.2408,128.75,128.68,147.02]
[1719186640543,6.09,128.71,128.68,147.02]
[1719186641448,6.09,128.74,128.7,146.68]
[1719186641655,6.09,128.73,128.71,0.17]
[1719186641961,6.09,128.72,128.7,0.17]
[1719186642266,6.09,128.72,128.7,0.34]
[1719186642849,45.2408,128.75,128.7,0.34]
[1719186643044,6.09,128.73,128.7,147.02]
[1719186643240,45.2408,128.75,128.71,146.68]
[1719186643553,6.09,128.75,128.72,0.34]
[1719186643748,44.8335,128.81,128.73,146.68]
[1719186644064,6.09,128.79,128.75,146.68]
[1719186644366,45.227,128.84,128.77,146.68]
[1719186644551,6.09,128.82,128.78,0.34]
[1719186644867,45.227,128.84,128.78,0.34]
[1719186646468,45.227,128.84,128.79,146.68]
[1719186646679,45.227,128.84,128.8,0.34]
[1719186647581,6.24998177,128.87,128.8,0.34]
[1719186647867,18.27,128.85,128.8,0.34]
[1719186648254,18.27,128.85,128.81,146.68]
[1719186648573,43.4756,128.88,128.82,0.34]
[1719186650366,18.27,128.86,128.82,0.17]
[1719186650567,18.27,128.86,128.79,146.68]
[1719186650945,18.27,128.86,128.79,154.4442]
[1719186651170,61.7456,128.88,128.82,146.68]